lending/lending_fUSD_20240401
["ID","MTS","AMOUNT","RATE_DAILY","PERIOD"]
[321190713,1711962637980,-963.0,0.00058759,120]
[321190714,1711962637989,-1136.549,0.00058759,120]
[321190715,1711962637998,-1186.351,0.00058759,120]
[321190717,1711962638009,-500.0,0.0005878,2]
[321190719,1711962638019,-468.57133247,0.0005879,2]
[321190721,1711962638028,-500.0,0.00058794,90]
[321190723,1711962638038,-800.0,0.00058794,90]
[321190725,1711962638047,-500.0,0.00058794,90]
[321190727,1711962638056,-407.11155856,0.00058794,90]
[321190729,1711962638064,-25000.0,0.000588,2]
[321190731,1711962638073,-152.28964276,0.00058853,78]
[321190733,1711962638083,-7089.81941957,0.00058853,2]
[321190735,1711962638092,-1982.61149517,0.00058853,2]
[321190737,1711962638101,-1973.28535789,0.00058853,37]
[321190739,1711962638110,-381.78617194,0.00058853,120]
[321190741,1711962638119,-480.64420621,0.0005887,7]
[321190743,1711962638128,-150.72,0.0005887,120]
[321190745,1711962638137,-244.31874466,0.00058872,3]
[321190747,1711962638146,-510.15081628,0.00058878,4]
[321190750,1711962638155,-978.53260255,0.00058878,4]
[321190752,1711962638164,-163.53579154,0.00058878,4]
[321190754,1711962638174,-156.28219707,0.00058878,4]
[321190756,1711962638183,-431.05992528,0.00058878,2]
[321190758,1711962638192,-194.97867516,0.00058878,4]
[321190760,1711962638202,-618.17009277,0.00058878,4]
[321190762,1711962638211,-1119301.60310457,0.00058878,120]
[321190763,1711962638222,-1000.0,0.00058879,12]
[321190766,1711962638231,-352.57059752,0.00058879,2]
[321190768,1711962638240,-314.3460151,0.00058879,120]
[321190769,1711962638249,-572.96,0.00058879,120]
[321190771,1711962638258,-500.0,0.00058879,120]
[321190774,1711962638267,-394.87607329,0.00058879,120]
[321190776,1711962638277,-175.62,0.00058879,120]
[321190777,1711962638286,-150.0,0.00058879,120]
[321190780,1711962638297,-544.77895428,0.00058879,120]
[321190782,1711962638306,-160.63772143,0.00058879,120]
[321190784,1711962638315,-423.48261434,0.00058879,120]
[321190785,1711962638324,-500.0,0.00058879,120]
[321190786,1711962638334,-500.0,0.00058879,120]
[321190787,1711962638343,-230.0,0.00058879,120]
[321190788,1711962638352,-549.94808756,0.00058879,120]
[321190789,1711962638361,-500.0,0.00058879,120]
[321190790,1711962638370,-570.48,0.00058879,120]
[321190791,1711962638379,-500.0,0.00058879,120]
[321190792,1711962638388,-588.13397952,0.00058879,120]
[321190793,1711962638397,-500.0,0.00058879,120]
[321190794,1711962638406,-500.0,0.00058879,120]
[321190795,1711962638415,-500.0,0.00058879,120]
[321190796,1711962638425,-527.51,0.00058879,120]
[321190797,1711962638434,-500.0,0.00058879,120]
[321190798,1711962638444,-500.0,0.00058879,120]
[321190799,1711962638453,-263.42193876,0.00058879,120]
[321190800,1711962638462,-1494.99,0.00058879,120]
[321190801,1711962638471,-356.2752375,0.00058879,120]
[321190802,1711962638480,-500.0,0.00058879,120]
[321190803,1711962638489,-1496.61,0.00058879,120]
[321190804,1711962638500,-500.0,0.00058879,120]
[321190805,1711962638512,-178.009596,0.00058879,120]
[321190806,1711962638521,-500.0,0.00058879,120]
[321190807,1711962638530,-500.0,0.00058879,120]
[321190808,1711962638540,-500.0,0.00058879,120]
[321190809,1711962638550,-500.0,0.00058879,120]
[321190810,1711962638559,-500.0,0.00058879,120]
[321190811,1711962638569,-500.0,0.00058879,120]
[321190812,1711962638578,-500.0,0.00058879,120]
[321190813,1711962638589,-1234.95,0.00058879,120]
[321190814,1711962638598,-932.06,0.00058879,120]
[321190815,1711962638607,-500.0,0.00058879,120]
[321190816,1711962638618,-500.0,0.00058879,120]
[321190817,1711962638627,-881.29,0.00058879,120]
[321190818,1711962638636,-500.0,0.00058879,120]
[321190819,1711962638645,-671.53,0.00058879,120]
[321190820,1711962638654,-500.0,0.00058879,120]
[321190821,1711962638663,-500.0,0.00058879,120]
[321190822,1711962638672,-318.14583508,0.00058879,120]
[321190823,1711962638683,-500.0,0.00058879,120]
[321190824,1711962638694,-1456.28,0.00058879,120]
[321190825,1711962638703,-496.17,0.00058879,120]
[321190826,1711962638713,-500.0,0.00058879,120]
[321190827,1711962638722,-500.0,0.00058879,120]
[321190828,1711962638732,-500.0,0.00058879,120]
[321190829,1711962638741,-500.0,0.00058879,120]
[321190830,1711962638750,-843.07,0.00058879,120]
[321190831,1711962638760,-687.01,0.00058879,120]
[321190832,1711962638769,-500.0,0.00058879,120]
[321190833,1711962638779,-500.0,0.00058879,21]
[321190834,1711962638789,-500.0,0.00058879,120]
[321190835,1711962638798,-1481.2,0.00058879,120]
[321190836,1711962638806,-500.0,0.00058879,120]
[321190837,1711962638816,-500.0,0.00058879,120]
[321190838,1711962638825,-500.0,0.00058879,120]
[321190839,1711962638835,-500.0,0.00058879,120]
[321190840,1711962638845,-500.0,0.00058879,120]
[321190841,1711962638854,-500.0,0.00058879,120]
[321190842,1711962638864,-500.0,0.00058879,120]
[321190843,1711962638874,-500.0,0.00058879,120]
[321190844,1711962638885,-500.0,0.00058879,120]
[321190845,1711962638895,-1000.0,0.00058879,120]
[321190846,1711962638907,-333.0,0.00058879,120]
[321190847,1711962638917,-500.0,0.00058879,120]
[321190848,1711962638926,-545.06686843,0.00058879,120]
[321190849,1711962638935,-500.0,0.00058879,120]
[321190850,1711962638944,-500.0,0.00058879,120]
[321190851,1711962638954,-571.77,0.00058879,120]
[321190852,1711962638963,-500.0,0.00058879,120]
[321190853,1711962638973,-500.0,0.00058879,120]
[321190854,1711962638982,-500.0,0.00058879,120]
[321190855,1711962638991,-500.0,0.00058879,120]
[321190856,1711962639000,-500.0,0.00058879,120]
[321190857,1711962639009,-586.5,0.00058879,120]
[321190858,1711962639018,-500.0,0.00058879,120]
[321190859,1711962639027,-548.4,0.00058879,120]
[321190860,1711962639037,-7079.35402741,0.0005888,36]
[321190861,1711962639046,-337742.16570566,0.0005888,7]
[321190862,1711962639132,-338.29916822,0.0005888,7]
[321190863,1711962639518,-500.0,0.00058879,120]
[321190864,1711962639527,-1083.9999815,0.0005888,7]
[321190865,1711962639539,-353.85500001,0.0005888,7]
[321190866,1711962639683,-1058.82893966,0.0005888,7]
[321190867,1711962639900,-48797.20957233,0.0005888,7]
[321190868,1711962639930,-2715.03649891,0.0005888,7]
[321190870,1711962642607,-2991.85589046,0.0005888,7]
[321190871,1711962642619,-3938.99711185,0.0005888,7]
[321190872,1711962642716,-362.94267819,0.0005888,7]
[321190873,1711962642826,-6425.02573791,0.0005888,7]
[321190874,1711962642838,-5424.66073125,0.0005888,7]
[321190892,1711962645564,-347.67,0.00058879,120]
[321190893,1711962645633,-152.33,0.00058879,120]
[321190894,1711962645642,-3204.3543578,0.00058879,2]
[321190895,1711962645651,-14894.23416458,0.0005888,7]
[321190905,1711963099470,-547.32882451,0.00032995,2]
[321190906,1711963099648,-450.0,0.00032996,2]
[321190907,1711963099674,-350.0,0.00033,3]
[321190926,1711963832593,-3204.3543578,0.00037706,2]
[321190927,1711963832602,-158.92280315,0.00037707,2]
[321190928,1711963832612,-938.37870965,0.00037807,4]
[321190929,1711963832622,-156.23,0.00037808,2]
[321190930,1711963832631,-156.27,0.00037808,2]
[321190931,1711963832640,-192.55565899,0.00040599,2]
[321190932,1711963832650,-1000.0,0.000406,15]
[321190933,1711963832659,-176.04,0.00041096,2]
[321190934,1711963832669,-156.23,0.00045437,2]
[321190935,1711963832678,-153.76,0.000463,5]
[321190936,1711963832687,-153.76,0.000463,5]
[321190937,1711963832696,-153.76,0.000463,5]
[321190938,1711963832705,-153.76,0.000463,5]
[321190939,1711963832715,-153.76,0.000463,5]
[321190940,1711963832725,-153.76,0.000463,5]
[321190941,1711963832734,-153.76,0.000511,6]
[321190942,1711963832743,-153.76,0.000511,6]
[321190943,1711963832752,-153.76,0.000511,6]
[321190944,1711963832762,-153.76,0.000511,6]
[321190945,1711963832771,-153.76,0.000511,6]
[321190946,1711963832781,-153.76,0.000511,6]
[321190947,1711963832791,-156.23,0.00053066,2]
[321190948,1711963832801,-2175.13,0.00053066,24]
[321190949,1711963832810,-376.24,0.0005322,2]
[321190950,1711963832820,-3653.49347041,0.000535,120]
[321190951,1711963832832,-1159.58852959,0.000535,120]
[321190952,1711963832842,-1474.34725852,0.000535,120]
[321190953,1711963832866,-2569.93854963,0.000535,120]
[321190954,1711963832879,-768.79619185,0.000535,120]
[321190955,1711963832889,-4813.082,0.000535,120]
[321190956,1711963832901,-4813.083,0.000535,120]
[321190957,1711963832911,-4813.082,0.000535,120]
[321190958,1711963832920,-504.53499359,0.00053537,4]
[321190959,1711963832931,-156.71,0.00054727,120]
[321190960,1711963832941,-150.0,0.00054795,120]
[321190961,1711963832950,-176.04,0.00054795,2]
[321190962,1711963832960,-296.0,0.00055,30]
[321190963,1711963832969,-555.94,0.00055002,2]
[321190964,1711963832978,-250.0,0.00055068,120]
[321190965,1711963832988,-152.52711179,0.00055114,2]
[321190977,1711963837776,-2578.15353988,0.00037705,4]
[321191059,1711963839894,-2421.84646012,0.00037705,4]
[321191060,1711963839904,-685.71288821,0.00055114,2]
[321191061,1711963839913,-200.0,0.00055123,2]
[321191062,1711963839923,-838.24,0.00055128,2]
[321191063,1711963839932,-838.24,0.00055143,2]
[321191064,1711963839941,-838.24,0.00055157,2]
[321191065,1711963839951,-768.62,0.00055163,2]
[321191066,1711963839960,-383.22105167,0.00055166,2]
[321191070,1711963842680,-200.0,0.00055002,120]
[321191072,1711963842690,-137.78833844,0.00055166,2]
[321191085,1711963845781,-671.16025406,0.00055166,2]
[321191086,1711963845884,-811.3923395,0.00055166,2]
[321191087,1711963980753,4999.999999,0.00043226,120]
[321191088,1711964007553,5000.0,0.00043226,120]
[321191089,1711964009203,300.0,0.00043226,30]
[321191090,1711964048299,207.867,0.00043226,120]
[321191091,1711964078127,5000.0,0.00043226,120]
[321191092,1711964120818,5000.0,0.00043226,120]
[321191095,1711964167171,5000.0,0.00043227,120]
[321191096,1711964176242,300.0,0.00043227,30]
[321191099,1711964220390,5000.0,0.00043227,120]
[321191100,1711964226110,265.0,0.00043227,30]
[321191103,1711964274368,5000.0,0.00043227,120]
[321191113,1711964364894,5000.0,0.00043227,120]
[321191115,1711964439157,5000.0,0.00043227,120]
[321191116,1711964486992,5000.0,0.00043227,120]
[321191117,1711964528638,-361.60429919,0.00037604,4]
[321191118,1711964528658,-1638.39570081,0.00037604,4]
[321191119,1711964529717,-2000.0,0.00037604,4]
[321191120,1711964530230,-1361.60429919,0.00037604,4]
[321191121,1711964530252,-638.39570081,0.00037605,2]
[321191122,1711964530717,-2000.0,0.00037605,2]
[321191123,1711964531348,-565.95865699,0.00037605,2]
[321191124,1711964533248,5000.0,0.00043227,120]
[321191127,1711964555232,350.0,0.00033,3]
[321191128,1711964556330,400.0,0.00035,3]
[321191129,1711964557457,450.0,0.00037,3]
[321191130,1711964570830,-243.04,0.00037808,2]
[321191131,1711964570853,-256.96,0.00039,3]
[321191132,1711964574234,-243.04,0.00039,3]
[321191133,1711964589364,5000.0,0.00043227,120]
[321191140,1711964648302,7626.76123851,0.00043227,120]
[321191150,1711964725146,156.26,0.00037808,2]
[321191172,1711965031879,-3204.3543578,0.00040898,2]
[321191173,1711965031889,-891.2277,0.00040899,2]
[321191174,1711965031898,-27940.0463221,0.00040999,4]
[321191175,1711965031907,-5968.37110585,0.00040999,4]
[321191176,1711965031916,-550.0,0.00041,3]
[321191177,1711965031928,-243.04,0.00043028,2]
[321191178,1711965031937,-1465.71922469,0.00043227,4]
[321191179,1711965031947,-980.29907059,0.00043227,4]
[321191180,1711965031956,-210.44509383,0.00043227,4]
[321191181,1711965031965,-153.81,0.000463,5]
[321191182,1711965031975,-153.81,0.000463,5]
[321191183,1711965031985,-153.81,0.000463,5]
[321191184,1711965031994,-243.04,0.00048248,2]
[321191185,1711965032004,-20752.97932648,0.000498,60]
[321191186,1711965032013,-153.81,0.000511,6]
[321191187,1711965032023,-153.81,0.000511,6]
[321191188,1711965032032,-153.81,0.000511,6]
[321191189,1711965032041,-504.53499359,0.00053367,4]
[321191190,1711965032050,-158.92280314,0.00053368,2]
[321191191,1711965032059,-243.04,0.00053468,2]
[321191192,1711965032069,-391.73,0.00053599,2]
[321191193,1711965032078,-6521.15541175,0.0005462,2]
[321191194,1711965032087,-180.38115396,0.00054795,120]
[321191195,1711965032097,-2099.0,0.00054795,117]
[321191196,1711965032105,-571.4627,0.0005482,72]
[321191197,1711965032114,-571.46269,0.00055068,73]
[321191198,1711965032123,-571.46269,0.0005513,73]
[321191199,1711965032133,-838.24,0.00055172,2]
[321191200,1711965032142,-500.0,0.0005518,2]
[321191201,1711965032151,-838.24,0.00055186,2]
[321191202,1711965032161,-676.8,0.00055192,30]
[321191203,1711965032171,-838.24,0.00055201,2]
[321191204,1711965032184,-838.24,0.00055215,2]
[321191205,1711965032193,-838.24,0.0005523,2]
[321191206,1711965032203,-838.24,0.00055244,2]
[321191207,1711965032214,-838.24,0.00055259,2]
[321191208,1711965032224,-156.96,0.00055267,120]
[321191209,1711965032234,-877.36,0.00055267,2]
[321191210,1711965032244,-838.24,0.00055273,2]
[321191211,1711965032254,-838.24,0.00055288,2]
[321191212,1711965032267,-838.24,0.00055302,2]
[321191213,1711965032276,-838.24,0.00055317,2]
[321191214,1711965032286,-838.24,0.00055331,2]
[321191215,1711965032295,-838.24,0.00055346,2]
[321191216,1711965032304,-838.24,0.0005536,2]
[321191217,1711965032314,-758.28,0.00055372,2]
[321191218,1711965032323,-838.24,0.00055375,2]
[321191219,1711965032332,-447.68,0.00055378,2]
[321191220,1711965032341,-5078.62,0.00055383,30]
[321191221,1711965032350,-838.24,0.00055389,2]
[321191222,1711965032360,-250.0,0.00055391,120]
[321191223,1711965032370,-160.0,0.00055408,120]
[321191224,1711965032379,-151.34,0.00055408,2]
[321191225,1711965032389,-571.4627,0.0005544,75]
[321191226,1711965032398,-182.96,0.00055445,2]
[321191227,1711965032408,-840.0,0.00055457,120]
[321191228,1711965032418,-304.46,0.00055464,10]
[321191229,1711965032430,-365.35,0.00055474,10]
[321191230,1711965032440,-353.57,0.00055484,10]
[321191231,1711965032450,-3648.5,0.00055494,2]
[321191232,1711965032460,-1176.26,0.00055527,120]
[321191233,1711965032470,-5273.54,0.00055621,2]
[321191234,1711965032479,-153.61,0.00055656,2]
[321191235,1711965032488,-156.17,0.00055728,120]
[321191236,1711965032498,-571.4627,0.0005576,76]
[321191237,1711965032507,-879.03,0.00055834,2]
[321191238,1711965032517,-391.73,0.00055863,2]
[321191239,1711965032527,-1200.0,0.0005589,30]
[321191240,1711965032537,-153.81,0.000559,8]
[321191241,1711965032547,-153.81,0.000559,8]
[321191242,1711965032557,-153.81,0.000559,8]
[321191243,1711965032567,-174.47,0.00055982,2]
[321191244,1711965032577,-153.61,0.00056019,2]
[321191245,1711965032586,-571.46269,0.0005607,78]
[321191246,1711965032596,-817.43,0.00056082,30]
[321191247,1711965032605,-201.0,0.00056128,2]
[321191248,1711965032615,-153.61,0.00056382,2]
[321191249,1711965032628,-153.61,0.00056744,2]
[321191250,1711965032637,-178.65,0.00056831,2]
[321191251,1711965032646,-2000.0,0.00057,120]
[321191252,1711965032655,-153.61,0.00057107,2]
[321191253,1711965032665,-153.61,0.00057469,2]
[321191254,1711965032674,-225.0,0.000575,13]
[321191255,1711965032683,-175.0,0.00057534,120]
[321191256,1711965032692,-192.82562792,0.00057762,20]
[321191257,1711965032702,-1681.92763949,0.00057768,2]
[321191258,1711965032711,-12310.75597601,0.00057768,4]
[321191259,1711965032720,-174.05766826,0.00057768,4]
[321191260,1711965032730,-378.82535548,0.00057768,4]
[321191261,1711965032739,-155.62018798,0.00057768,4]
[321191262,1711965032749,-165.28377532,0.00057768,4]
[321191263,1711965032758,-273.54393644,0.00057769,2]
[321191264,1711965032767,-62000.00000001,0.0005777,2]
[321191265,1711965032777,-153.61,0.00057832,2]
[321191266,1711965032786,-2554.38712705,0.00057853,2]
[321191267,1711965032795,-152.0,0.00058041,3]
[321191268,1711965032805,-758.28,0.00058112,2]
[321191269,1711965032814,-391.73,0.00058127,2]
[321191270,1711965032823,-259.259,0.00058139,2]
[321191271,1711965032832,-153.61,0.00058194,2]
[321191272,1711965032841,-2554.38712696,0.00058389,2]
[321191273,1711965032850,-1000.0,0.00058399,2]
[321191274,1711965032859,-4234.4742,0.00058399,2]
[321191275,1711965032869,-323.9,0.0005849,30]
[321191276,1711965032878,-505.62161133,0.00058498,120]
[321191277,1711965032887,-510.32119422,0.00058498,120]
[321191278,1711965032896,-529.92626688,0.00058498,120]
[321191279,1711965032905,-436.33,0.00058498,120]
[321191280,1711965032914,-314.0,0.00058498,120]
[321191281,1711965032923,-500.0,0.00058498,120]
[321191282,1711965032932,-726.88,0.00058498,120]
[321191283,1711965032942,-175.85772502,0.00058498,120]
[321191284,1711965032951,-807.94,0.00058498,120]
[321191285,1711965032960,-500.0,0.00058498,120]
[321191286,1711965032969,-500.0,0.00058498,120]
[321191287,1711965032978,-500.0,0.00058498,120]
[321191288,1711965032988,-631.28,0.00058498,120]
[321191289,1711965032997,-500.0,0.00058498,120]
[321191290,1711965033006,-500.0,0.00058498,120]
[321191291,1711965033015,-1008.15020306,0.00058499,12]
[321191292,1711965033025,-500.0,0.00058499,120]
[321191293,1711965033034,-500.0,0.00058499,120]
[321191294,1711965033043,-500.0,0.00058499,120]
[321191295,1711965033052,-500.0,0.00058499,120]
[321191296,1711965033061,-500.0,0.00058499,120]
[321191297,1711965033071,-499.88247776,0.00058499,120]
[321191298,1711965033080,-500.0,0.00058499,120]
[321191299,1711965033090,-179.43,0.00058499,2]
[321191300,1711965033099,-500.0,0.00058499,120]
[321191301,1711965033109,-500.0,0.00058499,120]
[321191302,1711965033118,-505.53,0.00058499,120]
[321191303,1711965033127,-500.0,0.00058499,120]
[321191304,1711965033136,-500.0,0.00058499,120]
[321191305,1711965033146,-1604.41,0.00058499,120]
[321191306,1711965033156,-391.72,0.00058499,120]
[321191307,1711965033167,-500.0,0.00058499,120]
[321191308,1711965033182,-500.0,0.00058499,120]
[321191309,1711965033191,-1323.56,0.00058499,120]
[321191310,1711965033200,-500.0,0.00058499,120]
[321191311,1711965033211,-1016.18,0.00058499,120]
[321191312,1711965033220,-500.0,0.00058499,120]
[321191313,1711965033229,-500.0,0.00058499,120]
[321191314,1711965033238,-500.0,0.00058499,120]
[321191315,1711965033249,-697.89,0.00058499,120]
[321191316,1711965033258,-1502.82,0.00058499,120]
[321191317,1711965033267,-435.22,0.00058499,120]
[321191318,1711965033277,-500.0,0.00058499,120]
[321191319,1711965033286,-500.0,0.00058499,120]
[321191320,1711965033295,-270.11,0.00058499,120]
[321191321,1711965033304,-500.0,0.00058499,120]
[321191322,1711965033313,-500.0,0.00058499,120]
[321191323,1711965033322,-59020.06866694,0.000585,120]
[321191324,1711965033331,-433.35174952,0.000585,2]
[321191325,1711965033341,-153.61,0.00058557,2]
[321191326,1711965033350,-187.70010788,0.00058612,14]
[321191327,1711965033359,-243.04,0.00058688,2]
[321191328,1711965033368,-500.0,0.00058712,120]
[321191329,1711965033376,-500.0,0.00058712,120]
[321191330,1711965033385,-500.0,0.00058712,120]
[321191331,1711965033394,-582.9,0.00058712,120]
[321191332,1711965033403,-500.0,0.00058712,120]
[321191333,1711965033415,-500.0,0.00058712,120]
[321191334,1711965033426,-500.0,0.00058712,120]
[321191335,1711965033434,-1543.99,0.00058712,120]
[321191336,1711965033444,-500.0,0.00058712,120]
[321191337,1711965033453,-500.0,0.00058712,120]
[321191338,1711965033462,-500.0,0.00058712,120]
[321191339,1711965033471,-500.0,0.00058712,120]
[321191340,1711965033481,-500.0,0.00058712,120]
[321191341,1711965033490,-519.46,0.00058712,120]
[321191342,1711965033499,-500.0,0.00058712,120]
[321191343,1711965033509,-500.0,0.00058712,120]
[321191344,1711965033518,-927.9,0.00058712,120]
[321191345,1711965033527,-1541.07,0.00058712,120]
[321191346,1711965033536,-500.0,0.00058712,21]
[321191348,1711965033545,-741.72,0.00058712,120]
[321191350,1711965033554,-500.0,0.00058712,120]
[321191352,1711965033563,-500.0,0.00058712,120]
[321191354,1711965033572,-500.0,0.00058712,120]
[321191356,1711965033581,-500.0,0.00058712,120]
[321191358,1711965033590,-500.0,0.00058712,120]
[321191359,1711965033599,-500.0,0.00058712,120]
[321191360,1711965033608,-175.0,0.00058712,120]
[321191361,1711965033617,-500.0,0.00058772,120]
[321191362,1711965033626,-726.88,0.00058772,120]
[321191363,1711965033635,-807.94,0.00058772,120]
[321191364,1711965033645,-500.0,0.00058772,120]
[321191365,1711965033654,-500.0,0.00058772,120]
[321191366,1711965033663,-500.0,0.00058772,120]
[321191367,1711965033672,-631.28,0.00058772,120]
[321191368,1711965033682,-364.53249805,0.00058772,120]
[321191369,1711965033691,-290.52555696,0.00058772,120]
[321191370,1711965033700,-500.0,0.00058773,120]
[321191371,1711965033709,-500.0,0.00058773,120]
[321191372,1711965033721,-500.0,0.00058773,120]
[321191373,1711965033731,-500.0,0.00058773,120]
[321191374,1711965033740,-500.0,0.00058773,120]
[321191375,1711965033749,-287.26,0.00058773,120]
[321191376,1711965033758,-500.0,0.00058773,120]
[321191377,1711965033767,-313.42,0.00058773,120]
[321191378,1711965033776,-505.53,0.00058773,120]
[321191379,1711965033785,-500.0,0.00058773,120]
[321191380,1711965033794,-500.0,0.00058773,120]
[321191381,1711965033803,-1604.41,0.00058773,120]
[321191382,1711965033813,-500.0,0.00058773,120]
[321191383,1711965033822,-500.0,0.00058773,120]
[321191384,1711965033831,-1323.56,0.00058773,120]
[321191385,1711965033840,-500.0,0.00058773,120]
[321191386,1711965033849,-1016.18,0.00058773,120]
[321191387,1711965033860,-500.0,0.00058773,120]
[321191388,1711965033869,-500.0,0.00058773,120]
[321191389,1711965033878,-500.0,0.00058773,120]
[321191390,1711965033888,-697.89,0.00058773,120]
[321191391,1711965033897,-1502.82,0.00058773,120]
[321191392,1711965033908,-500.0,0.00058773,120]
[321191393,1711965033917,-500.0,0.00058773,120]
[321191394,1711965033926,-500.0,0.00058773,120]
[321191395,1711965033935,-700.3017139,0.0005878,2]
[321191396,1711965033945,-213.44410808,0.0005878,30]
[321191397,1711965033955,-316.05987208,0.0005878,2]
[321191398,1711965033965,-991.9078682,0.000588,120]
[321191399,1711965033974,-384.96857523,0.0005887,7]
[321191400,1711965033983,-323.9,0.0005887,30]
[321191401,1711965033992,-323.9,0.0005887,30]
[321191402,1711965034002,-150.72,0.0005887,120]
[321191403,1711965034011,-2084.40268326,0.00058877,2]
[321191404,1711965034163,-59666.92154712,0.0005888,7]
[321191405,1711965034316,-2042.92763949,0.0005888,7]
[321191406,1711965034327,-359.16532702,0.0005888,7]
[321191415,1711965037846,-253.72,0.00058489,10]
[321191416,1711965037855,-6003.44,0.0005888,7]
[321191417,1711965038018,-394118.95949979,0.0005888,7]
[321191418,1711965038027,-6477.72150349,0.0005888,4]
[321191419,1711965038036,-7081.17344276,0.0005888,15]
[321191420,1711965038046,-400.0,0.000589,21]
[321191421,1711965038055,-4447.3233281,0.00058907,2]
[321191422,1711965038064,-4778.34199842,0.00058907,2]
[321191452,1711965039925,-500.0,0.00058499,120]
[321191453,1711965039936,-500.0,0.00058773,120]
[321191454,1711965039945,-8311.84246328,0.00058907,2]
[321191455,1711965039955,-2554.38712696,0.00058925,2]
[321191456,1711965039964,-323.9,0.00058937,30]
[321191457,1711965039973,-167.19998369,0.00058947,75]
[321191458,1711965039983,-17831.031572,0.0005896,2]
[321191459,1711965039992,-75645.4494634,0.0005896,2]
[321191460,1711965040003,-500.0,0.00058986,120]
[321191461,1711965040012,-500.0,0.00058986,120]
[321191462,1711965040022,-582.9,0.00058986,120]
[321191463,1711965040032,-500.0,0.00058986,120]
[321191464,1711965040041,-500.0,0.00058986,120]
[321191465,1711965040051,-500.0,0.00058986,120]
[321191466,1711965040061,-1543.99,0.00058986,120]
[321191467,1711965040070,-500.0,0.00058986,120]
[321191468,1711965040080,-500.0,0.00058986,120]
[321191469,1711965040089,-500.0,0.00058986,120]
[321191470,1711965040098,-500.0,0.00058986,120]
[321191471,1711965040107,-500.0,0.00058986,120]
[321191472,1711965040117,-519.46,0.00058986,120]
[321191473,1711965040126,-500.0,0.00058986,120]
[321191474,1711965040135,-500.0,0.00058986,120]
[321191475,1711965040144,-927.9,0.00058986,120]
[321191476,1711965040153,-1541.07,0.00058986,120]
[321191477,1711965040163,-500.0,0.00058986,21]
[321191478,1711965040173,-741.72,0.00058986,120]
[321191479,1711965040187,-500.0,0.00058986,120]
[321191480,1711965040197,-500.0,0.00058986,120]
[321191481,1711965040206,-500.0,0.00058986,120]
[321191482,1711965040216,-500.0,0.00058986,120]
[321191483,1711965040226,-500.0,0.00058986,120]
[321191484,1711965040235,-500.0,0.00058986,120]
[321191485,1711965040245,-500.0,0.00059,2]
[321191486,1711965040255,-2000.0,0.00059,120]
[321191487,1711965040266,-500.0,0.00059046,120]
[321191488,1711965040276,-726.88,0.00059046,120]
[321191489,1711965040285,-807.94,0.00059046,120]
[321191490,1711965040294,-500.0,0.00059046,120]
[321191491,1711965040303,-500.0,0.00059046,120]
[321191492,1711965040313,-500.0,0.00059046,120]
[321191493,1711965040322,-631.28,0.00059046,120]
[321191494,1711965040332,-687.0,0.00059047,25]
[321191495,1711965040340,-500.0,0.00059047,120]
[321191496,1711965040349,-500.0,0.00059047,120]
[321191497,1711965040359,-500.0,0.00059047,120]